fUST/lending_fUST_20250524
["ID","MTS","AMOUNT","RATE_DAILY","PERIOD"]
[362171753,1748055034206,-430.0,0.00021995,3]
[362171754,1748055034216,-388.1005322,0.00021995,3]
[362171755,1748055034226,-2125.39,0.00021995,3]
[362171756,1748055034237,-432.06140119,0.00021995,3]
[362171757,1748055034249,-430.0,0.00021995,3]
[362171758,1748055034259,-286.56771702,0.00021995,3]
[362171759,1748055034270,-433.97440239,0.00021995,3]
[362171760,1748055034281,-430.0,0.00021995,3]
[362171761,1748055034291,-436.15840206,0.00021995,3]
[362171762,1748055034304,-439.9842887,0.00021995,3]
[362171763,1748055034315,-430.0,0.00021995,3]
[362171764,1748055034325,-442.33736206,0.00021995,3]
[362171765,1748055034335,-337.32345642,0.00021995,3]
[362171766,1748055034345,-436.38434245,0.00021995,3]
[362171767,1748055034355,-310.88212444,0.00021995,3]
[362171768,1748055034365,-243.76513012,0.00021995,3]
[362171769,1748055034375,-430.0,0.00021995,3]
[362171770,1748055034385,-546.25,0.00021995,3]
[362171771,1748055034395,-437.85337121,0.00021995,3]
[362171772,1748055034405,-430.0,0.00021995,3]
[362171773,1748055034416,-430.0,0.00021995,3]
[362171774,1748055034425,-372.33862664,0.00021995,3]
[362171775,1748055034435,-435.99571683,0.00021995,3]
[362171776,1748055034445,-430.0,0.00021995,3]
[362171777,1748055034455,-430.0,0.00021995,3]
[362171778,1748055034466,-200.50814028,0.00021995,3]
[362171779,1748055034476,-434.68301146,0.00021995,3]
[362171780,1748055034487,-432.20322708,0.00021995,3]
[362171781,1748055034498,-432.79644569,0.00021995,3]
[362171782,1748055034509,-227.13605199,0.00021995,3]
[362171783,1748055034519,-430.0,0.00021995,3]
[362171784,1748055034529,-430.0,0.00021995,3]
[362171785,1748055034538,-430.0,0.00021995,3]
[362171786,1748055034548,-474.48,0.00021995,3]
[362171787,1748055034558,-441.09459333,0.00021995,3]
[362171788,1748055034568,-470.62253172,0.00021995,3]
[362171789,1748055034578,-430.0,0.00021995,3]
[362171790,1748055034588,-439.30385915,0.00021995,3]
[362171791,1748055034599,-430.0,0.00021995,3]
[362171792,1748055034609,-426.70616685,0.00021995,3]
[362171793,1748055034619,-430.0,0.00021995,3]
[362171794,1748055034629,-427.87785063,0.00021995,3]
[362171795,1748055034639,-436.24743075,0.00021995,3]
[362171796,1748055034649,-652.07,0.00021995,3]
[362171797,1748055034658,-430.0,0.00021995,3]
[362171798,1748055034667,-430.0,0.00021995,3]
[362171799,1748055034678,-429.08629935,0.00021995,3]
[362171800,1748055034687,-434.24384207,0.00021995,3]
[362171801,1748055034697,-430.37524206,0.00021995,3]
[362171802,1748055034707,-430.0,0.00021995,3]
[362171803,1748055034717,-476.63804425,0.00021995,3]
[362171804,1748055034727,-430.0,0.00021995,3]
[362171805,1748055034737,-404.53360833,0.00021995,3]
[362171806,1748055034747,-3259.22,0.00021995,3]
[362171807,1748055034756,-431.29382895,0.00021995,3]
[362171808,1748055034766,-430.0,0.00021996,3]
[362171809,1748055034776,-322.9233676,0.00021996,3]
[362171810,1748055034785,-430.0,0.00021996,3]
[362171811,1748055034796,-430.0,0.00021996,3]
[362171812,1748055034806,-430.0,0.00021996,3]
[362171813,1748055034816,-394.05846507,0.00021996,3]
[362171814,1748055034826,-430.0,0.00021996,3]
[362171815,1748055034835,-430.0,0.00021996,3]
[362171816,1748055034845,-400.0,0.00021996,3]
[362171817,1748055034854,-430.0,0.00021996,3]
[362171818,1748055034864,-430.0,0.00021996,3]
[362171819,1748055034874,-430.0,0.00021996,3]
[362171820,1748055034883,-430.0,0.00021996,3]
[362171821,1748055034893,-430.0,0.00021996,3]
[362171822,1748055034902,-430.0,0.00021996,3]
[362171823,1748055034912,-430.0,0.00021996,3]
[362171824,1748055034921,-430.0,0.00021996,3]
[362171825,1748055034930,-539.27330396,0.00021996,3]
[362171826,1748055034940,-430.0,0.00021996,3]
[362171827,1748055034950,-304.14867402,0.00021996,3]
[362171828,1748055034959,-430.0,0.00021996,3]
[362171829,1748055034968,-209.30534601,0.00021996,3]
[362171830,1748055034978,-430.0,0.00021996,3]
[362171831,1748055034987,-430.0,0.00021996,3]
[362171832,1748055034996,-431.80831513,0.00021996,3]
[362171833,1748055035008,-430.0,0.00021996,3]
[362171834,1748055035017,-430.0,0.00021996,3]
[362171835,1748055035028,-320.30664934,0.00021996,3]
[362171836,1748055035037,-430.0,0.00021996,3]
[362171837,1748055035046,-430.0,0.00021996,3]
[362171838,1748055035056,-440.30450457,0.00021996,3]
[362171839,1748055035065,-439.59429752,0.00021996,3]
[362171840,1748055035074,-442.04523248,0.00021996,3]
[362171841,1748055035083,-430.0,0.00021996,3]
[362171842,1748055035092,-346.43449532,0.00021996,3]
[362171843,1748055035101,-430.0,0.00021996,3]
[362171844,1748055035111,-430.0,0.00021996,3]
[362171845,1748055035121,-564.27,0.00021996,3]
[362171846,1748055035130,-430.0,0.00021996,3]
[362171847,1748055035139,-430.0,0.00021996,3]
[362171848,1748055035148,-430.0,0.00021996,3]
[362171849,1748055035158,-472.66,0.00021996,3]
[362171850,1748055035167,-430.0,0.00021996,3]
[362171851,1748055035178,-438.65391206,0.00021996,3]
[362171852,1748055035190,-430.0,0.00021996,3]
[362171853,1748055035200,-430.0,0.00021996,3]
[362171854,1748055035210,-430.0,0.00021996,3]
[362171855,1748055035220,-430.0,0.00021996,3]
[362171856,1748055035232,-430.0,0.00021996,3]
[362171857,1748055035242,-430.0,0.00021996,3]
[362171858,1748055035254,-430.0,0.00021996,3]
[362171859,1748055035264,-621.18,0.00021996,3]
[362171860,1748055035275,-430.0,0.00021996,3]
[362171861,1748055035284,-430.0,0.00021996,3]
[362171862,1748055035297,-430.0,0.00021996,3]
[362171863,1748055035308,-440.06346902,0.00021997,3]
[362171864,1748055035321,-300.25979374,0.00021997,3]
[362171865,1748055035332,-271.39794368,0.00021997,3]
[362171866,1748055035343,-430.0,0.00021997,3]
[362171867,1748055035353,-430.0,0.00021997,3]
[362171868,1748055035365,-430.0,0.00021997,3]
[362171869,1748055035375,-430.0,0.00021997,3]
[362171870,1748055035387,-430.0,0.00021997,3]
[362171871,1748055035397,-430.0,0.00021997,3]
[362171872,1748055035406,-430.0,0.00021997,3]
[362171873,1748055035417,-430.0,0.00021997,3]
[362171874,1748055035426,-430.0,0.00021997,3]
[362171875,1748055035436,-430.0,0.00021997,3]
[362171876,1748055035445,-430.0,0.00021997,3]
[362171877,1748055035454,-430.0,0.00021997,3]
[362171878,1748055035464,-452.72055257,0.00021997,3]
[362171879,1748055035475,-430.0,0.00021997,3]
[362171880,1748055035485,-430.0,0.00021997,3]
[362171881,1748055035495,-430.0,0.00021997,3]
[362171882,1748055035505,-430.0,0.00021997,3]
[362171883,1748055035515,-430.0,0.00021997,3]
[362171884,1748055035525,-430.0,0.00021997,3]
[362171885,1748055035534,-430.0,0.00021997,3]
[362171886,1748055035544,-511.16413192,0.00021997,3]
[362171887,1748055035553,-430.0,0.00021997,3]
[362171888,1748055035563,-430.0,0.00021997,3]
[362171889,1748055035572,-430.0,0.00021997,3]
[362171890,1748055035581,-430.0,0.00021997,3]
[362171891,1748055035591,-430.0,0.00021997,3]
[362171892,1748055035602,-430.0,0.00021997,3]
[362171893,1748055035611,-430.0,0.00021997,3]
[362171894,1748055035623,-430.0,0.00021997,3]
[362171895,1748055035633,-430.0,0.00021997,3]
[362171896,1748055035643,-430.0,0.00021997,3]
[362171897,1748055035652,-430.0,0.00021997,3]
[362171898,1748055035661,-430.0,0.00021997,3]
[362171899,1748055035671,-430.0,0.00021997,3]
[362171900,1748055035681,-431.90919171,0.00021997,3]
[362171901,1748055035692,-430.0,0.00021997,3]
[362171902,1748055035702,-430.0,0.00021997,3]
[362171903,1748055035712,-438.48072852,0.00021997,3]
[362171904,1748055035722,-430.0,0.00021997,3]
[362171905,1748055035733,-430.0,0.00021997,3]
[362171906,1748055035743,-430.0,0.00021997,3]
[362171907,1748055035752,-430.0,0.00021997,3]
[362171908,1748055035762,-430.0,0.00021997,3]
[362171909,1748055035773,-430.0,0.00021997,3]
[362171910,1748055035782,-173.33369535,0.00021997,3]
[362171911,1748055035792,-430.0,0.00021997,3]
[362171912,1748055035802,-433.6863415,0.00021997,3]
[362171913,1748055035812,-430.0,0.00021997,3]
[362171914,1748055035823,-430.0,0.00021997,3]
[362171915,1748055035833,-430.0,0.00021997,3]
[362171916,1748055035843,-430.0,0.00021997,3]
[362171917,1748055035854,-430.0,0.00021997,3]
[362171918,1748055035865,-489.33069443,0.00021997,3]
[362171919,1748055035874,-223.45947169,0.00021997,3]
[362171920,1748055035884,-430.0,0.00021997,3]
[362171921,1748055035894,-430.0,0.00021997,3]
[362171922,1748055035904,-430.0,0.00021997,3]
[362171923,1748055035915,-491.66859997,0.00021997,3]
[362171924,1748055035924,-430.0,0.00021997,3]
[362171925,1748055035935,-430.0,0.00021997,3]
[362171926,1748055035945,-430.0,0.00021997,3]
[362171927,1748055035955,-430.0,0.00021997,3]
[362171928,1748055035965,-430.0,0.00021997,2]
[362171929,1748055035976,-430.0,0.00021997,3]
[362171930,1748055035986,-430.0,0.00021997,3]
[362171931,1748055035997,-430.0,0.00021997,3]
[362171932,1748055036007,-2121.73,0.00021997,3]
[362171933,1748055036018,-430.0,0.00021997,3]
[362171934,1748055036028,-430.0,0.00021997,3]
[362171935,1748055036039,-430.0,0.00021997,3]
[362171936,1748055036048,-430.0,0.00021997,3]
[362171937,1748055036058,-500.0,0.00021998,3]
[362171938,1748055036067,-471.4949494,0.00021998,3]
[362171939,1748055036076,-426.40734811,0.00021999,3]
[362171940,1748055036086,-435.09900428,0.00021999,3]
[362171941,1748055036215,-433.71137045,0.00021999,3]
[362171942,1748055036228,-432.81043395,0.00021999,3]
[362171943,1748055036239,-433.56235241,0.00021999,3]
[362171944,1748055036248,-301.57788311,0.00021999,3]
[362171945,1748055036259,-433.4467067,0.00021999,3]
[362171946,1748055036270,-430.0,0.00021999,3]
[362171947,1748055036280,-430.0,0.00021999,3]
[362171948,1748055036293,-478.29459975,0.00021999,3]
[362171949,1748055036304,-430.0,0.00021999,3]
[362171950,1748055036313,-433.00160565,0.00021999,3]
[362171951,1748055036324,-430.0,0.00021999,3]
[362171952,1748055036335,-430.0,0.00021999,3]
[362171953,1748055036346,-430.0,0.00021999,3]
[362171954,1748055036357,-437.51970721,0.00021999,3]
[362171955,1748055036369,-430.0,0.00021999,3]
[362171956,1748055036378,-428.50651331,0.00021999,3]
[362171957,1748055036387,-430.0,0.00021999,3]
[362171958,1748055036397,-429.68517777,0.00021999,3]
[362171959,1748055036407,-430.0,0.00021999,3]
[362171960,1748055036416,-430.0,0.00021999,3]
[362171961,1748055036426,-332.97072008,0.00021999,3]
[362171962,1748055036436,-567.71821099,0.00021999,3]
[362171963,1748055036447,-482.75039904,0.00021999,3]
[362171964,1748055036457,-403.86486375,0.00021999,3]
[362171965,1748055036467,-430.0,0.00021999,3]
[362171966,1748055036476,-430.0,0.00021999,3]
[362171967,1748055036485,-430.0,0.00021999,3]
[362171968,1748055036495,-435.84600343,0.00021999,3]
[362171969,1748055036506,-374.25113867,0.00021999,3]
[362171970,1748055036517,-431.36586142,0.00021999,3]
[362171971,1748055036526,-432.52565328,0.00021999,3]
[362171972,1748055036537,-402.79834797,0.00021999,3]
[362171973,1748055036547,-433.22152089,0.00021999,3]
[362171974,1748055036556,-430.86701754,0.00021999,3]
[362171975,1748055036566,-552.08476465,0.00021999,3]
[362171976,1748055036575,-430.0,0.00021999,3]
[362171977,1748055036585,-407.31847345,0.00021999,3]
[362171978,1748055036595,-430.0,0.00021999,3]
[362171979,1748055036605,-430.0,0.00021999,3]
[362171980,1748055036614,-430.0,0.00021999,3]
[362171981,1748055036625,-343.93777555,0.00021999,3]
[362171982,1748055036636,-400.47200845,0.00021999,3]
[362171983,1748055036645,-402.47418272,0.00021999,3]
[362171984,1748055036655,-473.33947872,0.00021999,3]
[362171985,1748055036665,-432.95367784,0.00021999,3]
[362171986,1748055036674,-373.43730208,0.00021999,3]
[362171987,1748055036684,-402.81718377,0.00021999,3]
[362171988,1748055036693,-430.0,0.00021999,3]
[362171989,1748055036702,-430.0,0.00021999,3]
[362171990,1748055036712,-545.46425717,0.00021999,3]
[362171991,1748055036721,-430.0,0.00021999,3]
[362171992,1748055036731,-479.76070028,0.00021999,3]
[362171993,1748055036741,-430.0,0.00021999,3]
[362171994,1748055036751,-430.0,0.00021999,3]
[362171995,1748055036760,-442.88201686,0.00021999,3]
[362171996,1748055036770,-430.0,0.00021999,3]
[362171997,1748055036779,-430.0,0.00021999,3]
[362171998,1748055036789,-430.0,0.00021999,3]
[362171999,1748055036798,-430.0,0.00021999,3]
[362172000,1748055036807,-319.97345531,0.00021999,3]
[362172001,1748055036817,-430.0,0.00021999,3]
[362172002,1748055036827,-430.0,0.00021999,3]
[362172003,1748055036837,-430.0,0.00021999,3]
[362172004,1748055036847,-430.0,0.00021999,3]
[362172005,1748055036856,-430.0,0.00021999,3]
[362172006,1748055036865,-433.90526249,0.00021999,3]
[362172007,1748055036875,-432.26742429,0.00021999,3]
[362172008,1748055036884,-470.0,0.00021999,3]
[362172009,1748055036894,-158.29723968,0.00021999,3]
[362172010,1748055036904,-430.0,0.00021999,3]
[362172011,1748055036913,-163.79697453,0.00021999,2]
[362172012,1748055036923,-430.0,0.00021999,3]
[362172013,1748055036933,-433.09334258,0.00021999,3]
[362172014,1748055036942,-222.2149244,0.00021999,3]
[362172015,1748055036951,-430.0,0.00021999,3]
[362172016,1748055036961,-430.0,0.00021999,3]
[362172017,1748055036971,-430.0,0.00021999,3]
[362172018,1748055036980,-430.0,0.00021999,3]
[362172019,1748055036990,-430.0,0.00021999,3]
[362172020,1748055036999,-484.77373401,0.00021999,3]
[362172021,1748055037009,-430.0,0.00021999,3]
[362172022,1748055037019,-430.0,0.00021999,3]
[362172023,1748055037028,-430.0,0.00021999,3]
[362172024,1748055037037,-430.0,0.00021999,3]
[362172025,1748055037047,-430.0,0.00021999,3]
[362172026,1748055037056,-430.0,0.00021999,3]
[362172027,1748055037066,-271.41186183,0.00021999,3]
[362172028,1748055037076,-197.34155678,0.00021999,3]
[362172029,1748055037085,-430.0,0.00021999,3]
[362172030,1748055037095,-263.77802549,0.00021999,3]
[362172031,1748055037105,-196.66982021,0.00021999,3]
[362172032,1748055037114,-291.80313739,0.00021999,3]
[362172033,1748055037124,-430.0,0.00021999,3]
[362172034,1748055037133,-430.0,0.00021999,3]
[362172035,1748055037144,-300.12945146,0.00021999,3]
[362172036,1748055037154,-431.51663409,0.00021999,3]
[362172037,1748055037164,-434.10080873,0.00021999,3]
[362172038,1748055037174,-430.0,0.00021999,3]
[362172039,1748055037183,-193.09046034,0.00021999,3]
[362172040,1748055037193,-430.0,0.00021999,3]
[362172041,1748055037203,-430.0,0.00021999,3]
[362172042,1748055037213,-430.0,0.00021999,3]
[362172043,1748055037223,-430.0,0.00021999,3]
[362172044,1748055037235,-430.0,0.00021999,3]
[362172045,1748055037248,-532.02455839,0.00021999,3]
[362172046,1748055037259,-430.0,0.00021999,3]
[362172047,1748055037269,-430.0,0.00021999,3]
[362172048,1748055037280,-354.20970775,0.00021999,3]
[362172049,1748055037292,-430.0,0.00021999,3]
[362172050,1748055037304,-379.99812528,0.00021999,3]
[362172051,1748055037314,-344.93519171,0.00021999,3]
[362172052,1748055037325,-430.0,0.00021999,3]
[362172053,1748055037337,-378.50258909,0.00021999,3]
[362172054,1748055037349,-366.02113348,0.00021999,3]
[362172055,1748055037359,-406.88068893,0.00021999,3]
[362172056,1748055037371,-430.0,0.00021999,3]
[362172057,1748055037381,-315.5894048,0.00021999,3]
[362172058,1748055037391,-274.69157173,0.00021999,3]
[362172059,1748055037401,-444.22424629,0.00021999,3]
[362172060,1748055037411,-373.12529953,0.00021999,3]
[362172061,1748055037420,-430.0,0.00021999,3]
[362172062,1748055037431,-430.0,0.00021999,3]
[362172063,1748055037440,-430.0,0.00021999,3]
[362172064,1748055037450,-555.23967893,0.00022268,3]
[362172065,1748055037460,-368.18,0.00022268,3]
[362172066,1748055037471,-482.06,0.00022268,3]
[362172067,1748055037482,-423.51459779,0.00022268,3]
[362172068,1748055037495,-2803.84,0.00022268,3]
[362172069,1748055037505,-430.0,0.00022268,3]
[362172070,1748055037515,-4059.43,0.00022268,3]
[362172071,1748055037525,-4534.5,0.00022268,3]
[362172072,1748055037534,-1829.29,0.00022268,3]
[362172073,1748055037544,-430.0,0.00022268,3]
[362172074,1748055037554,-430.0,0.00022268,3]
[362172075,1748055037564,-2271.59,0.00022268,3]
[362172076,1748055037574,-430.0,0.00022268,3]
[362172077,1748055037583,-430.0,0.00022268,3]
[362172078,1748055037593,-1286.37,0.00022268,3]
[362172079,1748055037603,-430.0,0.00022268,3]
[362172080,1748055037612,-430.0,0.00022268,3]
[362172081,1748055037622,-430.0,0.00022268,3]
[362172082,1748055037632,-430.0,0.00022269,3]
[362172083,1748055037642,-430.0,0.00022269,3]
[362172084,1748055037651,-430.0,0.00022269,3]
[362172085,1748055037661,-430.0,0.00022269,3]
[362172086,1748055037671,-430.0,0.00022269,3]
[362172087,1748055037680,-430.0,0.00022269,3]
[362172088,1748055037690,-461.59728236,0.00022269,3]
[362172089,1748055037699,-205.9689398,0.00022269,3]
[362172090,1748055037709,-271.25,0.00022269,3]
[362172091,1748055037719,-430.0,0.00022269,3]
[362172092,1748055037729,-430.0,0.00022269,3]
[362172093,1748055037739,-430.0,0.00022269,3]
[362172094,1748055037749,-487.98038042,0.00022269,3]
[362172095,1748055037759,-430.0,0.00022269,3]
[362172096,1748055037768,-430.0,0.00022269,3]
[362172097,1748055037778,-430.0,0.00022269,3]
[362172098,1748055037787,-430.0,0.00022269,3]
[362172099,1748055037796,-288.17150701,0.00022269,3]
[362172100,1748055037806,-430.0,0.00022269,3]
[362172101,1748055037815,-488.33342632,0.00022269,3]
[362172102,1748055037825,-174.24,0.00022269,3]
[362172103,1748055037834,-485.97004854,0.00022269,3]
[362172104,1748055037843,-486.82787526,0.00022269,3]
[362172105,1748055037853,-430.0,0.00022269,3]
[362172106,1748055037862,-430.0,0.00022269,3]
[362172107,1748055037871,-430.0,0.00022269,3]
[362172108,1748055037880,-500.78191312,0.00022269,3]
[362172109,1748055037889,-456.93423085,0.00022269,3]
[362172110,1748055037899,-430.0,0.00022269,3]
[362172111,1748055037908,-430.0,0.00022269,3]
[362172112,1748055037918,-440.51550411,0.00022269,3]
[362172113,1748055037927,-430.0,0.00022269,3]
[362172114,1748055037936,-201.23,0.00022269,3]
[362172115,1748055037945,-430.0,0.00022269,3]
[362172116,1748055037955,-463.36316126,0.00022269,3]
[362172118,1748055037964,-441.42446355,0.00022269,3]
[362172119,1748055037977,-430.0,0.00022269,3]
[362172120,1748055037988,-430.0,0.00022269,3]
[362172122,1748055037997,-430.0,0.00022269,3]
[362172124,1748055038007,-430.0,0.00022269,3]
[362172126,1748055038016,-430.0,0.00022269,3]
[362172128,1748055038025,-430.0,0.00022269,3]
[362172129,1748055038035,-195.18,0.00022269,3]
[362172130,1748055038044,-261.32088509,0.00022269,3]
[362172131,1748055038053,-498.84670199,0.00022269,3]
[362172132,1748055038062,-430.0,0.00022269,3]
[362172133,1748055038071,-430.0,0.00022269,3]
[362172134,1748055038080,-1188.43,0.00022269,3]
[362172135,1748055038089,-238.81466585,0.00022269,3]
[362172136,1748055038099,-430.0,0.00022269,3]
[362172137,1748055038108,-430.0,0.00022269,3]
[362172138,1748055038117,-2125.39,0.00022269,3]
[362172139,1748055038126,-290.42,0.00022269,3]
[362172140,1748055038136,-430.0,0.00022269,3]
[362172141,1748055038146,-430.0,0.00022269,3]
[362172142,1748055038155,-311.62,0.00022269,3]
[362172143,1748055038165,-430.0,0.00022269,3]
[362172144,1748055038174,-278.52904426,0.00022269,3]
[362172145,1748055038183,-430.0,0.00022269,3]
[362172146,1748055038193,-430.0,0.00022269,3]
[362172147,1748055038202,-430.0,0.00022269,3]
[362172148,1748055038211,-430.0,0.00022269,3]
[362172149,1748055038221,-430.0,0.00022269,3]
[362172150,1748055038231,-652.07,0.00022269,3]
[362172151,1748055038242,-450.48,0.00022269,3]
[362172152,1748055038251,-430.0,0.00022269,3]
[362172153,1748055038260,-3259.22,0.00022269,3]
[362172154,1748055038269,-430.0,0.0002227,3]
[362172155,1748055038279,-430.0,0.0002227,3]
[362172156,1748055038289,-533.78,0.0002227,3]
[362172158,1748055038301,-430.0,0.0002227,3]
[362172160,1748055038311,-430.0,0.0002227,3]
[362172162,1748055038321,-460.04863825,0.0002227,3]
[362172163,1748055038331,-430.0,0.0002227,3]
[362172164,1748055038340,-430.0,0.0002227,3]
[362172165,1748055038349,-430.0,0.0002227,3]
[362172166,1748055038359,-430.0,0.0002227,3]
[362172168,1748055038369,-430.0,0.0002227,3]
[362172170,1748055038379,-430.0,0.0002227,3]
[362172172,1748055038388,-430.0,0.0002227,3]
[362172174,1748055038397,-430.0,0.0002227,3]
[362172176,1748055038407,-430.0,0.0002227,3]
[362172178,1748055038416,-430.0,0.0002227,3]
[362172180,1748055038425,-430.0,0.0002227,3]
[362172182,1748055038435,-430.0,0.0002227,3]
[362172184,1748055038444,-430.0,0.0002227,3]
[362172185,1748055038453,-430.0,0.0002227,3]
[362172186,1748055038464,-564.27,0.0002227,3]
[362172187,1748055038473,-430.0,0.0002227,3]
[362172188,1748055038483,-183.25,0.0002227,3]
[362172189,1748055038498,-472.66,0.0002227,3]
[362172190,1748055038508,-340.11,0.0002227,3]
[362172191,1748055038518,-428.46,0.0002227,3]
[362172192,1748055038529,-430.0,0.0002227,3]
[362172193,1748055038539,-442.44886619,0.0002227,3]
[362172194,1748055038548,-430.0,0.0002227,3]
[362172195,1748055038558,-430.0,0.0002227,3]
[362172196,1748055038568,-433.44067554,0.0002227,3]
[362172197,1748055038579,-621.18,0.0002227,3]
[362172198,1748055038588,-430.0,0.0002227,3]
[362172199,1748055038598,-430.0,0.0002227,3]
[362172200,1748055038608,-430.0,0.0002227,3]
[362172201,1748055038618,-430.0,0.00022271,3]
[362172202,1748055038628,-430.0,0.00022271,3]
[362172203,1748055038637,-430.0,0.00022271,3]
[362172204,1748055038648,-430.0,0.00022271,3]
[362172205,1748055038657,-430.0,0.00022271,3]
[362172206,1748055038667,-502.25887729,0.00022271,3]
[362172207,1748055038676,-548.16966907,0.00022271,3]
[362172208,1748055038784,-430.0,0.00022271,3]
[362172209,1748055038795,-430.0,0.00022271,3]
[362172210,1748055038805,-430.0,0.00022271,3]
[362172211,1748055038815,-430.0,0.00022271,3]
[362172212,1748055038825,-430.0,0.00022271,3]
[362172213,1748055038836,-430.0,0.00022271,3]
[362172214,1748055038847,-430.0,0.00022271,3]
[362172215,1748055038857,-430.0,0.00022271,3]
[362172216,1748055038867,-499.65,0.00022271,3]
[362172217,1748055038877,-433.99,0.00022271,3]
[362172218,1748055038887,-414.0,0.00022271,3]
[362172219,1748055038896,-430.0,0.00022271,3]
[362172220,1748055038906,-430.0,0.00022271,3]
[362172221,1748055038915,-574.83,0.00022271,3]
[362172222,1748055038924,-430.0,0.00022271,3]
[362172223,1748055038934,-430.0,0.00022271,3]
[362172224,1748055038943,-430.0,0.00022271,3]
[362172225,1748055038953,-430.0,0.00022271,3]
[362172226,1748055038962,-430.0,0.00022271,3]
[362172227,1748055038971,-430.0,0.00022271,3]
[362172228,1748055038980,-430.0,0.00022271,3]
[362172229,1748055038993,-430.0,0.00022271,3]
[362172230,1748055039003,-430.0,0.00022271,3]
[362172231,1748055039012,-430.0,0.00022271,3]
[362172232,1748055039022,-430.0,0.00022271,3]
[362172233,1748055039032,-430.0,0.00022271,3]
[362172234,1748055039041,-367.11223779,0.00022271,3]
[362172235,1748055039050,-430.0,0.00022271,3]
[362172236,1748055039059,-430.0,0.00022271,3]
[362172237,1748055039069,-504.82,0.00022271,3]
[362172238,1748055039078,-430.0,0.00022271,3]
[362172239,1748055039088,-356.81100998,0.00022271,3]
[362172240,1748055039097,-430.0,0.00022271,3]
[362172241,1748055039106,-430.0,0.00022271,3]
[362172242,1748055039116,-430.0,0.00022271,3]
[362172243,1748055039125,-430.0,0.00022271,3]
[362172244,1748055039135,-430.0,0.00022271,3]
[362172245,1748055039144,-430.0,0.00022271,3]
[362172246,1748055039154,-430.0,0.00022271,3]
[362172247,1748055039163,-430.0,0.00022271,3]
[362172248,1748055039174,-430.0,0.00022271,2]
[362172249,1748055039183,-430.0,0.00022271,3]
[362172250,1748055039192,-430.0,0.00022271,3]
[362172251,1748055039202,-430.0,0.00022271,3]
[362172252,1748055039211,-2121.73,0.00022271,3]
[362172253,1748055039220,-430.0,0.00022271,3]
[362172254,1748055039230,-254.04254525,0.00022271,3]
[362172255,1748055039242,-430.0,0.00022271,3]
[362172256,1748055039252,-430.0,0.00022271,3]
[362172257,1748055039261,-400.62222794,0.00022272,3]
[362172258,1748055039271,-293.42601162,0.00022273,3]
[362172259,1748055039280,-430.0,0.00022273,3]
[362172260,1748055039290,-442.52566844,0.00022273,3]
[362172261,1748055039303,-438.33628236,0.00022273,3]
[362172262,1748055039312,-430.0,0.00022273,3]
[362172263,1748055039322,-430.0,0.00022273,3]
[362172264,1748055039331,-430.0,0.00022273,3]
[362172265,1748055039343,-347.04051909,0.00022273,3]
[362172266,1748055039353,-430.0,0.00022273,3]
[362172267,1748055039362,-430.0,0.00022273,3]
[362172268,1748055039372,-430.0,0.00022273,3]
[362172269,1748055039382,-430.0,0.00022273,3]